[Event "10th LCC FIDE Open 2018"]
[Site "London"]
[Date "2018.12.12"]
[Round "4"]
[White "Johnson, Daniel"]
[Black "Richardson, John R"]
[Result "1/2-1/2"]
[ECO "E39"]
[WhiteElo "2111"]
[BlackElo "2242"]
[Annotator "NA"]
[PlyCount "61"]
[EventDate "2018.12.09"]
[EventType "swiss"]
[EventCountry "ENG"]
[SourceTitle "playchess.com"]
[Source "ChessBase"]
[SourceQuality "1"]
[TimeControl "40/5400+30:1800+30"]

1. d4 {[%emt 0:05:46]} Nf6 {[%emt 0:00:00]} 2. c4 {[%emt 0:00:04]} e6 {[%emt 0:00:00]} 3. Nc3 {[%emt 0:00:09]} Bb4 {[%emt 0:00:00]} 4. Qc2 {[%emt 0:00:06]} O-O {[%emt 0:00:00]} 5. Nf3 {[%emt 0:00:17]} c5 {[%emt 0:00:18]} 6. dxc5 {[%emt 0:00:20]} Na6 {[%emt 0:00:12]} 7. g3 {[%emt 0:00:41]} Nxc5 {[%emt 0:00:16]} 8. Bg2 {[%emt 0:00:17]} Nce4 {[%emt 0:00:23]} 9. Bd2 {[%emt 0:01:09]} Nxd2 {[%emt 0:00:06]} 10. Nxd2 {[%emt 0:00:15]} a6 {[%emt 0:00:09]} 11. O-O {[%emt 0:01:18] E39: Nimzo-Indian: Classical: 4...c5 5 dxc5 0-0} Rb8 {[%emt 0:00:21]} (11... Be7 12. Rfd1 Qc7 13. Rac1 Rb8 14. Qd3 Rd8 15. Nde4 Ng4 16. Qd4 d6 17. Qa7 Bd7 18. Nb5 Qa5 19. Nexd6 {1-0 (29) Li,S (2520)-Ni,H (2646) Xinghua Jiangsu 2011}) 12. e4 {[%emt 0:02:20]} Qc7 {[%emt 0:00:18]} 13. a3 {[%emt 0:13:08]} Be7 {[%emt 0:00:05]} 14. Qd3 $146 {[%emt 0:06:38]} ({Predecessor:} 14. b4 d6 15. Qd3 b6 16. Rac1 Bb7 17. f4 Rbc8 18. Ne2 Rfe8 {½-½ (56) Malmstroem,J-Oliveros,T UECC Email 2000}) 14... b6 {[%emt 0:04:37]} 15. Rac1 {[%emt 0:07:38]} Bb7 {[%emt 0:01:00]} 16. h3 {[%emt 0:02:01]} d6 {[%emt 0:03:51]} 17. Kh2 {[%emt 0:07:14]} b5 {[%emt 0:21:35]} 18. cxb5 {[%emt 0:09:10]} axb5 {[%emt 0:06:12]} 19. Nd5 {[%emt 0:20:34]} Qd8 {[%emt 0:01:06]} 20. Nxe7+ {[%emt 0:00:22]} Qxe7 {[%emt 0:00:01]} 21. Rfe1 {[%emt 0:04:51]} h5 {[%emt 0:04:02]} 22. Nb3 {[%emt 0:01:25]} h4 {[%emt 0:00:26]} 23. Na5 {[%emt 0:02:02]} hxg3+ {[%emt 0:00:41]} 24. fxg3 {[%emt 0:00:25]} Nd7 {[%emt 0:04:39]} (24... Ba8 $11 {keeps the balance.}) 25. Rcd1 {[%emt 0:06:15]} Ne5 {[%emt 0:03:09]} 26. Qxd6 {[%emt 0:00:44]} Qg5 {[%emt 0:00:04]} 27. Qd2 {[%emt 0:03:13]} Qh5 {[%emt 0:03:23]} 28. Qe2 {[%emt 0:00:25]} Qg5 $11 {[%emt 0:05:07]} 29. Qd2 {[%emt 0:00:17]} Qh5 {[%emt 0:00:28]} 30. Qe2 {[%emt 0:00:47]} Qg5 {[%emt 0:00:17]} 31. Qd2 {[%emt 0:01:42]} 1/2-1/2

[Event "10th LCC FIDE Open 2018"]
[Site "London"]
[Date "2018.12.12"]
[Round "4"]
[White "Dahl, Baard"]
[Black "Signorelli, Gaetano"]
[Result "0-1"]
[ECO "B01"]
[WhiteElo "2097"]
[BlackElo "2222"]
[Annotator "ChessBase"]
[PlyCount "56"]
[EventDate "2018.12.09"]
[EventType "swiss"]
[EventCountry "ENG"]
[SourceTitle "playchess.com"]
[Source "ChessBase"]
[SourceQuality "1"]
[TimeControl "40/5400+30:1800+30"]

1. e4 {[%emt 0:00:00]} d5 {[%emt 0:00:00]} 2. exd5 {[%emt 0:00:00]} Nf6 {[%emt 0:00:00]} 3. c4 {[%emt 0:00:20]} e6 {[%emt 0:00:02]} 4. dxe6 {[%emt 0:06:29]} Bxe6 {[%emt 0:00:06]} 5. Be2 {[%emt 0:01:51]} Nc6 {[%emt 0:00:37]} 6. Nf3 {[%emt 0:01:16]} Bc5 {[%emt 0:00:18]} 7. O-O {[%emt 0:07:18]} O-O {[%emt 0:01:51]} 8. Nc3 {[%emt 0:04:41]} Bf5 {[%emt 0:11:14]} 9. Na4 {[%emt 0:08:13]} Bd4 {[%emt 0:03:04]} 10. d3 {[%emt 0:12:48]} Re8 {[%emt 0:02:18]} 11. Re1 {[%emt 0:27:46]} Ng4 {[%emt 0:12:41]} 12. Nxd4 {[%emt 0:01:52]} Qxd4 {[%emt 0:00:08]} 13. Bxg4 {[%emt 0:03:16]} Bxg4 {[%emt 0:00:11]} 14. Qd2 {[%emt 0:01:41]} Rxe1+ {[%emt 0:06:00]} 15. Qxe1 {[%emt 0:00:02]} Qxd3 {[%emt 0:01:43]} 16. h3 {[%emt 0:01:35]} Bxh3 {[%emt 0:37:06]} 17. gxh3 {[%emt 0:02:39]} Nd4 {[%emt 0:00:05]} 18. Qe3 {[%emt 0:05:32]} Qg6+ {[%emt 0:01:18]} 19. Kf1 {[%emt 0:06:13]} Nc2 {[%emt 0:00:13]} 20. Qe2 {[%emt 0:04:03]} Nxa1 {[%emt 0:00:44]} 21. Nc3 {[%emt 0:00:05]} Qc2 {[%emt 0:05:27]} 22. Qe3 {[%emt 0:00:39]} Rd8 {[%emt 0:00:15]} 23. b3 {[%emt 0:00:45]} Qd3+ {[%emt 0:00:32]} 24. Qxd3 {[%emt 0:00:15]} Rxd3 {[%emt 0:00:05]} 25. Bb2 {[%emt 0:00:56]} Nc2 {[%emt 0:00:12]} 26. Nd5 {[%emt 0:00:55]} c6 {[%emt 0:01:46]} 27. Nf4 {[%emt 0:01:09]} Rd7 {[%emt 0:03:06]} 28. Nh5 {[%emt 0:00:25]} Nd4 {[%emt 0:01:44]} 0-1

[Event "10th LCC FIDE Open 2018"]
[Site "London"]
[Date "2018.12.12"]
[Round "4"]
[White "Gerlach, Felix Tobias"]
[Black "Britton, Richard L"]
[Result "1/2-1/2"]
[ECO "A36"]
[WhiteElo "2050"]
[BlackElo "2186"]
[Annotator "RC"]
[PlyCount "83"]
[EventDate "2018.12.09"]
[EventType "swiss"]
[EventCountry "ENG"]
[SourceTitle "playchess.com"]
[Source "ChessBase"]
[SourceQuality "1"]
[TimeControl "40/5400+30:1800+30"]

1. c4 {[%emt 2:02:25]} Nf6 {[%emt 0:00:06]} 2. g3 {[%emt 0:00:06]} g6 {[%emt 0:00:56]} 3. Bg2 {[%emt 0:00:05]} Bg7 {[%emt 0:00:03]} 4. Nc3 {[%emt 0:00:07]} O-O {[%emt 0:00:06]} 5. e4 {[%emt 0:00:06]} c5 {[%emt 0:02:35]} 6. Nge2 {[%emt 0:00:46]} Nc6 {[%emt 0:00:05]} 7. O-O {[%emt 0:00:16]} d6 {[%emt 0:02:04]} 8. d3 {[%emt 0:01:19]} a6 {[%emt 0:00:44]} 9. h3 {[%emt 0:00:45]} Ne8 {[%emt 0:06:10]} 10. Be3 {[%emt 0:01:35]} e5 {[%emt 0:04:23]} 11. f4 {[%emt 0:11:46]} exf4 {[%emt 0:01:33]} 12. Nxf4 {[%emt 0:04:46]} Nc7 {[%emt 0:04:16]} 13. a4 {[%emt 0:03:57]} Rb8 {[%emt 0:01:26]} 14. Nfd5 {[%emt 0:51:54]} Nxd5 {[%emt 0:11:45]} 15. cxd5 {[%emt 0:00:46]} Nd4 {[%emt 0:04:17]} 16. Rb1 {[%emt 0:03:17]} a5 {[%emt 0:07:11]} 17. Qd2 {[%emt 0:03:51]} b5 {[%emt 0:12:20]} 18. Nxb5 {[%emt 0:00:40]} Nxb5 {[%emt 0:00:08]} 19. axb5 {[%emt 0:00:05]} Rxb5 {[%emt 0:00:07]} 20. d4 {[%emt 0:00:30]} cxd4 {[%emt 0:03:49]} 21. Bxd4 {[%emt 0:00:12]} Bxd4+ {[%emt 0:04:34]} 22. Qxd4 {[%emt 0:00:08]} Rb4 {[%emt 0:00:26]} 23. Qa7 {[%emt 0:01:14]} Rb3 {[%emt 0:02:46]} 24. g4 {[%emt 0:03:43]} Bd7 {[%emt 0:04:12]} 25. Rf2 {[%emt 0:01:03]} Bb5 {[%emt 0:02:31]} 26. Rc1 {[%emt 0:01:35]} Qg5 {[%emt 0:15:25]} 27. Rc7 {[%emt 0:02:45]} Qe3 {[%emt 0:00:06]} 28. Qxe3 {[%emt 0:01:59]} Rc3 {[%emt 0:00:04]} 29. Qd3 Rxd3 30. Rf4 {[%emt 0:00:16]} Re3 31. Rf6 Bd3 {[%emt 0:17:59]} 32. Rxd6 {[%emt 0:01:41]} Re1+ {[%emt 0:00:06]} 33. Kh2 {[%emt 0:01:48]} Re2 {[%emt 0:00:34]} 34. Kg3 {[%emt 0:00:58]} Bxe4 {[%emt 0:01:11]} 35. Bxe4 {[%emt 0:01:04]} Rxe4 {[%emt 0:00:05]} 36. Ra6 {[%emt 0:00:20]} Rb8 {[%emt 0:01:03]} 37. Rxa5 {[%emt 0:00:51]} Rb3+ {[%emt 0:01:29]} 38. Rc3 {[%emt 0:00:08]} Rxb2 {[%emt 0:01:23]} 39. Ra7 {[%emt 0:00:46]} Rd2 {[%emt 0:02:33]} 40. Rf3 {[%emt 0:00:18]} f5 {[%emt 0:00:14]} 41. gxf5 {[%emt 0:00:33]} Rxd5 {[%emt 0:00:04]} 42. fxg6 {[%emt 0:01:04]} 1/2-1/2

[Event "10th LCC FIDE Open 2018"]
[Site "London"]
[Date "2018.12.12"]
[Round "4"]
[White "Mihailidou, Magdalini"]
[Black "Stoyanov, Viktor"]
[Result "0-1"]
[ECO "B95"]
[WhiteElo "1754"]
[BlackElo "2205"]
[Annotator "NA"]
[PlyCount "78"]
[EventDate "2018.12.09"]
[EventType "swiss"]
[EventCountry "ENG"]
[SourceTitle "playchess.com"]
[Source "ChessBase"]
[SourceQuality "1"]
[TimeControl "40/5400+30:1800+30"]

1. e4 {[%emt 0:00:00]} c5 {[%emt 0:02:44]} 2. Nf3 {[%emt 0:00:00]} d6 {[%emt 0:00:03]} 3. d4 {[%emt 0:00:00]} cxd4 {[%emt 0:00:05]} 4. Nxd4 {[%emt 0:00:10]} Nf6 {[%emt 0:00:05]} 5. Nc3 {[%emt 0:00:28]} a6 {[%emt 0:00:04]} 6. Qd3 {[%emt 0:00:08]} Nbd7 {[%emt 0:00:04]} 7. Bg5 {[%emt 0:00:14]} e6 {[%emt 0:00:18]} 8. Be2 {[%emt 0:00:37] B95: Sicilian Najdorf: 6 Bg5 e6, unusual White 7th moves} (8. O-O-O Be7 9. f4 Qc7 10. Be2 b5 11. Bf3 b4 12. e5 dxe5 13. Bxa8 exd4 14. Ne2 h6 15. Bh4 O-O 16. Kb1 e5 17. Qf3 exf4 18. Nxf4 {½-½ (40) Harikrishna,P (2726)-Vachier Lagrave,M (2766) Biel 2014}) 8... b5 {[%emt 0:00:23]} 9. a3 {[%emt 0:00:18]} Bb7 {[%emt 0:00:40]} 10. f4 {[%emt 0:00:10]} Be7 {[%emt 0:02:26]} 11. Bf3 {[%emt 0:00:12]} Qc7 {[%emt 0:00:20]} 12. O-O-O {[%emt 0:00:13]} O-O {[%emt 0:01:34]} 13. g4 {[%emt 0:01:26]} Rfc8 $146 {[%emt 0:04:03]} ({Predecessor:} 13... Rab8 14. Bh4 Ba8 15. g5 Nc5 {1-0 (40) Sax,G (2492)-Antal,T (2286) Kecskemet 2011}) 14. h4 {[%emt 0:03:23]} Rab8 {[%emt 0:04:00]} 15. Rh3 {[%emt 0:06:51]} Ba8 {[%emt 0:02:50]} 16. Bxf6 {[%emt 0:07:17]} Bxf6 {[%emt 0:01:02]} 17. g5 {[%emt 0:00:07]} Be7 {[%emt 0:00:13]} 18. h5 {[%emt 0:01:27]} Nc5 {[%emt 0:14:54]} 19. Qe2 {[%emt 0:01:30]} b4 {[%emt 0:00:53]} 20. axb4 {[%emt 0:00:08]} Rxb4 {[%emt 0:00:10]} 21. g6 {[%emt 0:05:07]} Bf6 {[%emt 0:06:14]} 22. gxh7+ {[%emt 0:01:53]} Kh8 {[%emt 0:00:22]} 23. e5 {[%emt 0:07:04]} dxe5 {[%emt 0:02:20]} 24. fxe5 {[%emt 0:00:22]} Bg5+ {[%emt 0:05:14]} 25. Kb1 {[%emt 0:00:15]} Rcb8 {[%emt 0:00:17]} 26. Nb3 {[%emt 0:01:36]} Nxb3 {[%emt 0:00:28]} 27. cxb3 {[%emt 0:00:07]} Rxb3 {[%emt 0:00:49]} 28. Bxa8 {[%emt 0:00:12]} Rxb2+ {[%emt 0:00:32]} 29. Qxb2 {[%emt 0:00:08]} Rxb2+ {[%emt 0:00:04]} 30. Kxb2 {[%emt 0:00:07]} Qb8+ {[%emt 0:00:07]} 31. Ka1 {[%emt 0:00:51]} Qxa8 {[%emt 0:00:17]} 32. Rd7 $19 {[%emt 0:00:47]} (32. Rhd3 {might work better.}) 32... Qg2 {[%emt 0:01:07]} 33. Rdd3 {[%emt 0:01:49]} Bc1 {[%emt 0:01:01]} 34. Nd1 {[%emt 0:00:43]} Bf4 {[%emt 0:00:10]} 35. Kb1 {[%emt 0:00:47]} Bxe5 {[%emt 0:00:24]} 36. h6 {[%emt 0:00:42]} g5 {[%emt 0:00:48]} 37. Rhf3 {[%emt 0:00:54]} Bf4 {[%emt 0:01:21]} 38. Nc3 {[%emt 0:01:13]} Kxh7 {[%emt 0:00:35]} 39. Ne4 {[%emt 0:00:36]} Kxh6 {[%emt 0:00:27]} 0-1

[Event "10th LCC FIDE Open 2018"]
[Site "London"]
[Date "2018.12.13"]
[Round "5"]
[White "Sowray, Peter J"]
[Black "Gant, Chris J"]
[Result "1-0"]
[ECO "A57"]
[WhiteElo "2342"]
[BlackElo "2135"]
[Annotator "NA"]
[PlyCount "55"]
[EventDate "2018.12.09"]
[EventType "swiss"]
[EventCountry "ENG"]
[SourceTitle "playchess.com"]
[Source "ChessBase"]
[SourceQuality "1"]
[TimeControl "40/5400+30:1800+30"]

1. d4 {[%emt 0:00:00]} Nf6 {[%emt 0:07:45]} 2. c4 {[%emt 0:00:00]} c5 {[%emt 0:00:20]} 3. d5 {[%emt 0:00:00]} b5 {[%emt 0:00:07]} 4. cxb5 {[%emt 0:00:00]} a6 {[%emt 0:00:10]} 5. f3 {[%emt 0:00:00]} d6 {[%emt 0:01:38]} 6. e4 {[%emt 0:01:48]} g6 {[%emt 0:00:28]} 7. Nc3 {[%emt 0:01:52]} Bg7 {[%emt 0:00:16]} 8. a4 {[%emt 0:00:06]} O-O {[%emt 0:00:25]} 9. Be3 {[%emt 0:00:04]} Nbd7 {[%emt 0:08:20]} 10. Nh3 {[%emt 0:06:40]} Qa5 {[%emt 0:06:34]} 11. Ra3 {[%emt 0:03:52]} Bb7 {[%emt 0:04:35]} 12. Nf2 {[%emt 0:07:51]} Rfe8 {[%emt 0:01:35]} 13. Qd2 {[%emt 0:14:04]} e6 {[%emt 0:05:08]} 14. dxe6 {[%emt 0:01:47]} Rxe6 {[%emt 0:03:20]} 15. Bc4 {[%emt 0:03:50]} d5 {[%emt 0:00:34]} 16. Nxd5 {[%emt 0:03:15]} Qxd2+ {[%emt 0:00:14]} 17. Kxd2 {[%emt 0:00:35]} Nxd5 {[%emt 0:13:32]} 18. exd5 {[%emt 0:02:07]} Rxe3 {[%emt 0:00:19]} 19. Rxe3 {[%emt 0:05:45]} Bh6 {[%emt 0:00:24]} 20. Ng4 {[%emt 0:00:15]} Bxe3+ {[%emt 0:00:51]} 21. Nxe3 {[%emt 0:00:13]} Nb6 {[%emt 0:03:32]} 22. b3 {[%emt 0:01:26]} axb5 {[%emt 0:00:21]} 23. Bxb5 {[%emt 0:02:36]} Rd8 {[%emt 0:02:18]} 24. Kc3 {[%emt 0:02:29]} Nxd5+ {[%emt 0:00:32]} 25. Nxd5 {[%emt 0:00:06]} Rxd5 {[%emt 0:00:09]} 26. Re1 {[%emt 0:02:27]} Kg7 {[%emt 0:02:53]} 27. Re7 {[%emt 0:02:04]} Bc8 {[%emt 0:01:31]} 28. Bc4 {[%emt 0:02:41]} 1-0

[Event "10th LCC FIDE Open 2018"]
[Site "London"]
[Date "2018.12.13"]
[Round "5"]
[White "Pollack, Oscar"]
[Black "Mirzoyan, Davit T."]
[Result "0-1"]
[ECO "C82"]
[WhiteElo "2150"]
[BlackElo "2382"]
[Annotator "NA"]
[PlyCount "70"]
[EventDate "2018.12.09"]
[EventType "swiss"]
[EventCountry "ENG"]
[SourceTitle "playchess.com"]
[Source "ChessBase"]
[SourceQuality "1"]
[TimeControl "40/5400+30:1800+30"]

1. e4 {[%emt 0:00:00]} e5 {[%emt 0:00:00]} 2. Nf3 {[%emt 0:00:00]} Nc6 {[%emt 0:00:00]} 3. Bb5 {[%emt 0:00:00]} a6 {[%emt 0:00:00]} 4. Ba4 {[%emt 0:00:00]} Nf6 {[%emt 0:00:00]} 5. O-O {[%emt 0:00:00]} Nxe4 {[%emt 0:00:06]} 6. d4 {[%emt 0:00:18]} b5 {[%emt 0:00:16]} 7. Bb3 {[%emt 0:00:03]} d5 {[%emt 0:00:06]} 8. dxe5 {[%emt 0:00:04]} Be6 {[%emt 0:00:09]} 9. c3 {[%emt 0:00:10]} Bc5 {[%emt 0:01:31]} 10. Nbd2 {[%emt 0:01:42]} O-O {[%emt 0:00:05]} 11. Bc2 {[%emt 0:00:30]} Nxf2 {[%emt 0:00:05]} 12. Rxf2 {[%emt 0:00:07]} Bxf2+ {[%emt 0:00:08]} 13. Kxf2 {[%emt 0:00:06]} f6 {[%emt 0:00:03]} 14. exf6 {[%emt 0:08:40]} Qxf6 {[%emt 0:00:11]} 15. Nb3 {[%emt 0:03:50]} Ne5 {[%emt 0:11:38]} 16. Kg1 {[%emt 0:12:23]} Rae8 {[%emt 0:13:32]} 17. Be3 {[%emt 0:19:04]} Nxf3+ {[%emt 0:23:15]} 18. Qxf3 {[%emt 0:00:08]} Qxf3 {[%emt 0:00:13]} 19. gxf3 {[%emt 0:00:01]} Rxf3 {[%emt 0:00:20]} 20. Bc5 {[%emt 0:02:14]} Bh3 {[%emt 0:02:42]} 21. Nd4 {[%emt 0:02:26]} Rf6 {[%emt 0:12:33]} 22. Bb3 {[%emt 0:09:38]} Re5 {[%emt 0:00:52]} 23. Ne2 {[%emt 0:09:42]} Rxe2 {[%emt 0:01:09]} 24. Bxd5+ {[%emt 0:00:05]} Kh8 {[%emt 0:00:22]} 25. Rd1 {[%emt 0:03:47]} h5 {[%emt 0:00:56]} 26. Bd4 {[%emt 0:02:40]} Rg6+ {[%emt 0:01:36]} 27. Kh1 {[%emt 0:00:05]} Bg2+ {[%emt 0:00:25]} 28. Bxg2 {[%emt 0:00:02]} Rgxg2 {[%emt 0:00:08]} 29. Be5 {[%emt 0:01:17]} Rxb2 {[%emt 0:01:06]} 30. Rd7 {[%emt 0:00:29]} Rg5 {[%emt 0:00:17]} 31. Bg3 {[%emt 0:01:04]} Rb1+ {[%emt 0:00:22]} 32. Kg2 {[%emt 0:00:06]} h4 {[%emt 0:00:04]} 33. Rxc7 {[%emt 0:00:17]} hxg3 {[%emt 0:00:06]} 34. hxg3 {[%emt 0:00:03]} Rb2+ {[%emt 0:00:05]} 35. Kf3 {[%emt 0:00:05]} Rxa2 {[%emt 0:00:11]} 0-1

[Event "10th LCC FIDE Open 2018"]
[Site "London"]
[Date "2018.12.13"]
[Round "5"]
[White "Englisch, Colya"]
[Black "Gullaksen, Eirik"]
[Result "0-1"]
[ECO "E62"]
[WhiteElo "2105"]
[BlackElo "2349"]
[Annotator "NA"]
[PlyCount "54"]
[EventDate "2018.12.09"]
[EventType "swiss"]
[EventCountry "ENG"]
[SourceTitle "playchess.com"]
[Source "ChessBase"]
[SourceQuality "1"]
[TimeControl "40/5400+30:1800+30"]

1. Nf3 {[%emt 0:00:00]} g6 {[%emt 0:00:00]} 2. d4 {[%emt 0:00:26]} Nf6 {[%emt 0:00:00]} 3. g3 {[%emt 0:00:07]} Bg7 {[%emt 0:00:05]} 4. Bg2 {[%emt 0:00:06]} O-O {[%emt 0:00:10]} 5. O-O {[%emt 0:00:07]} d6 {[%emt 0:00:29]} 6. c4 {[%emt 0:00:40]} Nc6 {[%emt 0:00:29]} 7. Nc3 {[%emt 0:00:20]} e5 {[%emt 0:00:26]} 8. dxe5 {[%emt 0:00:43]} Nxe5 {[%emt 0:00:12]} 9. Nxe5 {[%emt 0:01:27]} dxe5 {[%emt 0:00:10]} 10. Bg5 {[%emt 0:03:05]} Qxd1 {[%emt 0:00:52]} 11. Rfxd1 {[%emt 0:02:47]} h6 {[%emt 0:00:15]} 12. Be3 {[%emt 0:04:50]} c6 {[%emt 0:01:35]} 13. Rac1 {[%emt 0:24:12]} Be6 {[%emt 0:02:37]} 14. b3 {[%emt 0:11:53]} Rfe8 {[%emt 0:01:44]} 15. Na4 {[%emt 0:07:38]} Ng4 {[%emt 0:06:06]} 16. Bd2 {[%emt 0:02:00]} Bf8 {[%emt 0:01:47]} 17. Bc3 {[%emt 0:04:31]} Bf5 {[%emt 0:08:00]} 18. e4 {[%emt 0:13:27]} Bc8 {[%emt 0:00:53]} 19. h3 {[%emt 0:03:01]} Nf6 {[%emt 0:00:26]} 20. Kh2 {[%emt 0:05:53]} Nd7 {[%emt 0:10:24]} 21. Rc2 {[%emt 0:06:25]} b6 {[%emt 0:07:45]} 22. Rcd2 {[%emt 0:01:51]} b5 {[%emt 0:00:17]} 23. Nb2 {[%emt 0:01:46]} b4 {[%emt 0:00:41]} 24. Bxb4 {[%emt 0:00:18]} Bxb4 {[%emt 0:00:09]} 25. Rxd7 {[%emt 0:00:06]} Bxd7 {[%emt 0:00:08]} 26. Rxd7 {[%emt 0:00:11]} Red8 {[%emt 0:01:33]} 27. Rd3 {[%emt 0:04:23]} Ba3 {[%emt 0:00:22]} 0-1

[Event "10th LCC FIDE Open 2018"]
[Site "London"]
[Date "2018.12.14"]
[Round "6"]
[White "Ghukasyan, Siranush"]
[Black "Rogacewicz, Mikolaj"]
[Result "1-0"]
[ECO "B04"]
[WhiteElo "2245"]
[BlackElo "1925"]
[Annotator "NA RC"]
[PlyCount "55"]
[EventDate "2018.12.09"]
[EventType "swiss"]
[EventCountry "ENG"]
[SourceTitle "playchess.com"]
[Source "ChessBase"]
[SourceQuality "1"]
[TimeControl "40/5400+30:1800+30"]

1. e4 {[%emt 0:00:00]} Nf6 {[%emt 0:00:00]} 2. e5 {[%emt 0:00:02]} Nd5 {[%emt 0:00:00]} 3. d4 {[%emt 0:00:31]} d6 {[%emt 0:00:05]} 4. Nf3 {[%emt 0:00:13]} g6 {[%emt 0:00:10]} 5. Bc4 {[%emt 0:02:53]} Nb6 {[%emt 0:00:10]} 6. Bb3 {[%emt 0:00:13]} Bg7 {[%emt 0:00:16]} 7. Ng5 {[%emt 0:08:17]} e6 {[%emt 0:00:52]} 8. f4 {[%emt 0:00:37]} O-O {[%emt 0:08:52]} 9. O-O {[%emt 0:00:05]} Bd7 {[%emt 0:16:10]} 10. a4 {[%emt 0:08:55]} Nc6 {[%emt 0:09:53]} 11. a5 {[%emt 0:07:47]} Nd5 {[%emt 0:02:51]} 12. c4 {[%emt 0:01:39]} Ndb4 {[%emt 0:07:01]} 13. d5 {[%emt 0:19:20]} exd5 {[%emt 0:07:48]} 14. cxd5 {[%emt 0:00:15]} Ne7 {[%emt 0:01:04]} 15. Nc3 {[%emt 0:01:02]} dxe5 {[%emt 0:08:56]} 16. fxe5 {[%emt 0:00:06]} Bxe5 {[%emt 0:01:14]} 17. Nxf7 {[%emt 0:02:37]} Rxf7 {[%emt 0:04:56]} 18. d6 {[%emt 0:00:10]} Nf5 {[%emt 0:09:49]} 19. Bxf7+ {[%emt 0:00:37]} Kxf7 {[%emt 0:00:05]} 20. Qb3+ {[%emt 0:00:33]} Kg7 {[%emt 0:03:58]} 21. Qxb4 {[%emt 0:01:17]} Bc6 {[%emt 0:03:26]} 22. Bf4 {[%emt 0:08:09]} Bd4+ {[%emt 0:03:04]} 23. Kh1 {[%emt 0:00:01]} Qh4 {[%emt 0:02:13]} 24. Rad1 {[%emt 0:09:37]} Qh3 {[%emt 0:01:10]} 25. Rd2 {[%emt 0:01:54]} g5 {[%emt 0:01:07]} 26. Nb5 {[%emt 0:03:16]} gxf4 {[%emt 0:04:58]} 27. Nxd4 {[%emt 0:00:24]} Ng3+ {[%emt 0:01:06]} 28. Kg1 {[%emt 0:00:01]} 1-0

[Event "10th LCC FIDE Open 2018"]
[Site "London"]
[Date "2018.12.15"]
[Round "7"]
[White "Gilevych, Artem"]
[Black "Mihalik, Agoston"]
[Result "1-0"]
[ECO "E05"]
[WhiteElo "2409"]
[BlackElo "2220"]
[Annotator "ChessBase"]
[PlyCount "141"]
[EventDate "2018.12.09"]
[EventType "swiss"]
[EventCountry "ENG"]
[SourceTitle "playchess.com"]
[Source "ChessBase"]
[SourceQuality "1"]
[TimeControl "40/5400+30:1800+30"]

1. Nf3 {[%emt 0:09:15]} d5 {[%emt 0:00:00]} 2. d4 {[%emt 0:00:43]} Nf6 {[%emt 0:00:00]} 3. c4 {[%emt 0:00:04]} e6 {[%emt 0:00:00]} 4. g3 {[%emt 0:00:05]} Be7 {[%emt 0:00:16]} 5. Bg2 {[%emt 0:00:05]} O-O {[%emt 0:00:06]} 6. O-O {[%emt 0:00:04]} dxc4 {[%emt 0:00:06]} 7. Na3 {[%emt 0:00:08]} a6 {[%emt 0:16:57]} 8. Nxc4 {[%emt 0:08:37]} b5 {[%emt 0:07:17]} 9. Nfe5 {[%emt 0:07:17]} Ra7 {[%emt 0:00:19]} 10. Na5 {[%emt 0:00:47]} Bd7 {[%emt 0:02:10]} 11. Bd2 {[%emt 0:11:26]} Nd5 {[%emt 0:14:07]} 12. Rc1 {[%emt 0:01:33]} f6 {[%emt 0:00:58]} 13. Nd3 {[%emt 0:04:14]} Kh8 {[%emt 0:08:30]} 14. Qb3 {[%emt 0:03:05]} Be8 {[%emt 0:01:52]} 15. e4 {[%emt 0:12:15]} Nb6 {[%emt 0:00:06]} 16. Bb4 {[%emt 0:06:06]} Bxb4 {[%emt 0:06:28]} 17. Qxb4 {[%emt 0:01:06]} Qd6 {[%emt 0:02:52]} 18. b3 {[%emt 0:06:42]} Bh5 {[%emt 0:08:27]} 19. e5 {[%emt 0:08:23]} fxe5 {[%emt 0:03:24]} 20. dxe5 {[%emt 0:00:22]} Qxb4 {[%emt 0:00:14]} 21. Nxb4 {[%emt 0:00:02]} c5 {[%emt 0:00:13]} 22. Rxc5 {[%emt 0:02:17]} N6d7 {[%emt 0:01:51]} 23. Rcc1 {[%emt 0:08:39]} Nxe5 {[%emt 0:00:50]} 24. f4 {[%emt 0:00:25]} Be2 {[%emt 0:10:43]} 25. fxe5 {[%emt 0:00:47]} Bxf1 {[%emt 0:00:04]} 26. Rxf1 {[%emt 0:00:22]} Rxf1+ {[%emt 0:00:15]} 27. Kxf1 {[%emt 0:00:04]} Rc7 {[%emt 0:01:25]} 28. Nbc6 {[%emt 0:02:02]} Nxc6 {[%emt 0:00:23]} 29. Nxc6 {[%emt 0:00:05]} Kg8 {[%emt 0:00:26]} 30. Ke2 {[%emt 0:00:07]} Kf8 {[%emt 0:00:29]} 31. Be4 {[%emt 0:02:34]} h5 {[%emt 0:02:34]} 32. Nd4 {[%emt 0:02:45]} Kf7 {[%emt 0:00:02]} 33. Bc6 {[%emt 0:01:49]} g5 {[%emt 0:00:37]} 34. Kd3 {[%emt 0:00:27]} h4 {[%emt 0:00:28]} 35. g4 {[%emt 0:00:05]} Kg6 {[%emt 0:00:34]} 36. Be4+ {[%emt 0:00:59]} Kf7 {[%emt 0:00:02]} 37. Nf3 {[%emt 0:00:23]} Rc1 {[%emt 0:00:21]} 38. Nxg5+ {[%emt 0:00:06]} Ke7 {[%emt 0:00:00]} 39. Nf3 {[%emt 0:01:14]} h3 {[%emt 0:00:01]} 40. Bb7 {[%emt 0:01:36]} a5 {[%emt 0:03:00]} 41. a4 {[%emt 0:02:55]} bxa4 {[%emt 0:03:58]} 42. bxa4 {[%emt 0:00:02]} Rb1 {[%emt 0:00:09]} 43. Bc6 {[%emt 0:00:54]} Rb4 {[%emt 0:00:04]} 44. g5 {[%emt 0:00:18]} Rg4 {[%emt 0:00:11]} 45. Ke3 {[%emt 0:00:42]} Kf7 {[%emt 0:00:58]} 46. Be4 {[%emt 0:00:06]} Rg2 {[%emt 0:00:22]} 47. Kf4 {[%emt 0:00:50]} Kg7 {[%emt 0:00:31]} 48. Bd3 {[%emt 0:00:24]} Ra2 {[%emt 0:00:16]} 49. Bb5 {[%emt 0:00:10]} Rg2 {[%emt 0:00:11]} 50. Bc4 {[%emt 0:09:08]} Kf7 {[%emt 0:01:15]} 51. Bb5 {[%emt 0:07:26]} Kg7 {[%emt 0:01:23]} 52. Ke3 {[%emt 0:00:35]} Kf7 {[%emt 0:02:41]} 53. Kd4 {[%emt 0:05:12]} Rf2 {[%emt 0:00:22]} 54. Ke4 {[%emt 0:00:30]} Rb2 {[%emt 0:00:35]} 55. Ke3 {[%emt 0:02:47]} Rg2 {[%emt 0:00:32]} 56. Be2 {[%emt 0:00:24]} Rg4 {[%emt 0:00:28]} 57. Bd1 {[%emt 0:00:51]} Ke8 {[%emt 0:01:58]} 58. Bc2 {[%emt 0:01:46]} Rg2 {[%emt 0:00:40]} 59. Be4 {[%emt 0:00:27]} Kf7 {[%emt 0:00:48]} 60. Kf4 {[%emt 0:01:43]} Ra2 {[%emt 0:00:32]} 61. g6+ {[%emt 0:00:11]} Kg7 {[%emt 0:00:30]} 62. Ng5 {[%emt 0:01:02]} Rxh2 {[%emt 0:02:25]} 63. Nxe6+ {[%emt 0:00:05]} Kg8 {[%emt 0:00:07]} 64. Ng5 {[%emt 0:00:56]} Kg7 {[%emt 0:03:38]} 65. e6 {[%emt 0:00:06]} Rf2+ {[%emt 0:00:14]} 66. Kg3 {[%emt 0:00:43]} Rf8 {[%emt 0:00:10]} 67. Kxh3 {[%emt 0:00:21]} Rh8+ {[%emt 0:00:38]} 68. Kg4 {[%emt 0:00:05]} Kf6 {[%emt 0:00:02]} 69. Bf5 {[%emt 0:01:26]} Ke7 {[%emt 0:01:01]} 70. Nh7 {[%emt 0:00:34]} Rb8 {[%emt 0:00:53]} 71. Kg5 {[%emt 0:00:03]} 1-0